Cogmind - Beta 13 @@@ ROGUE MODE // 2024.04.03 @ 03:05:10 Player: kilohertz Result: Destroyed by Y-54 Guardian with Gatling Laser Performance ------------- Evolutions (0) 0 Regions Visited (3) 600 Robots Destroyed (11) 55 Value Destroyed (249) 249 Prototype IDs (0) 0 Alien Tech Used (0) 0 Bonus (0) 0 TOTAL SCORE: 904 Bonus ------- None Cogmind --------- Core Integrity 0/250 Matter 286/300 Energy 130/250 System Corruption 0% Temperature Cool (6) Movement Walking (130) Location -7/Recycling Parts ------- > --- POWER (1) -------- Ion Engine > --- PROPULSION (2) --- Improved Titanium Leg Improved Titanium Leg > --- UTILITY (2) ------ Medium Storage Unit Sensor Array > --- WEAPON (2) ------- Light Assault Rifle Light Assault Rifle > --- INVENTORY (10) --- Improved Titanium Leg Subdweller Monowheel Small Storage Unit Large Storage Unit Sensor Array Signal Interpreter Terrain Scanner Assault Rifle Peak State ------------ > --- POWER ------------ Light Nuclear Core > --- PROPULSION ------- Improved Titanium Leg Improved Titanium Leg > --- UTILITY ---------- Medium Storage Unit Sensor Array > --- WEAPON ----------- Light Assault Rifle Light Assault Rifle > --- INVENTORY -------- Ion Engine Subdweller Monowheel Scrap Engine Small Storage Unit Large Storage Unit Sensor Array Signal Interpreter Terrain Scanner Assault Rifle [Rating: 17] Favorites ----------- Power Light Nuclear Core Engine Ion Engine Power Core Light Nuclear Core Propulsion Aluminum Leg Treads Light Treads Leg Aluminum Leg Utility Sensor Array Device Sensor Array Storage Medium Storage Unit Weapon Light Assault Rifle Ballistic Gun Light Assault Rifle Build | -11 -10 -10 -7 ------- Run | Yrd Mat Sub Rec Slots Evolved . | . . . . Power . | . . . . Propulsion . | . . . . Utility . | . . . . Weapon . | . . . . Parts Attached 29 | 6 16 1 6 Power 4 | 1 2 . 1 Engine 3 | 1 1 . 1 Core 1 | . 1 . . Reactor . | . . . . Propulsion 16 | 2 8 1 5 Treads 4 | . 4 . . Leg 12 | 2 4 1 5 Wheel . | . . . . Hover . | . . . . Flight . | . . . . Utility 4 | 1 3 . . Device 1 | . 1 . . Storage 3 | 1 2 . . Processor . | . . . . Hackware . | . . . . Protection . | . . . . Artifact . | . . . . Weapon 5 | 2 3 . . Energy Gun . | . . . . Energy Cannon . | . . . . Ballistic Gun 5 | 2 3 . . Ballistic Cannon . | . . . . Launcher . | . . . . Special Weapon . | . . . . Impact Weapon . | . . . . Slashing Weapon . | . . . . Piercing Weapon . | . . . . Special Melee Weapon . | . . . . Unidentified Prototypes . | . . . . Parts Lost 3 | . 1 1 1 Power 1 | . . . 1 Propulsion 1 | . . 1 . Utility . | . . . . Weapon 1 | . 1 . . Highest Loss Streak 1 | . 1 1 1 To Critical Strikes . | . . . . Average Slot Usage (%) 99 | . 99 99 100 Engine 4 | . 8 . . Core 9 | . 5 14 13 Treads 7 | . 15 . . Leg 20 | . 12 27 28 Device 13 | . 13 14 14 Storage 14 | . 14 14 14 Ballistic Gun 28 | . 28 28 28 Naked Turns . | . . . . Heaviest Build 29 | 13 29 18 18 Greatest Support 40 | 20 40 25 40 Greatest Overweight (x) 1 | . 1 1 . Average Overweight (x) . | . . . . Largest Inventory Capacity 15 | 8 15 10 10 Average Capacity 10 | 7 12 10 10 Most Carried 10 | 4 10 10 10 Average Carried 8 | 1 8 9 9 Final Capacity 10 | 8 10 10 10 Final Carried 10 | 4 10 9 8 Class Distribution -------------------- 100% | Mutant Dominant Class ---------------- Mutant | -10/Materials Mutant | -10/Subcaves Mutant | -7/Recycling Resources | -11 -10 -10 -7 ----------- Run | Yrd Mat Sub Rec Matter Collected 608 | 122 198 238 50 Remotely . | . . . . Salvage Created 287 | . 216 71 . Parts 18 | . 16 2 . Haulers Intercepted . | . . . . Recyclers Shooed . | . . . . Parts Field Recycled . | . . . . Retrieved Matter . | . . . . Parts Self-Destructed 9 | . . 9 . Prevented . | . . . . Kills | -11 -10 -10 -7 ------- Run | Yrd Mat Sub Rec Combat Hostiles Destroyed 10 | . 7 3 . Guns 10 | . 7 3 . Classes Destroyed 3 | . 2 1 . Turret 1 | . . 1 . Swarmer 6 | . 3 3 . Grunt 4 | . 4 . . Best Kill Streak 3 | . 3 2 . Combat Bots Only 3 | . 3 2 . Max Kills in Single Turn 1 | . 1 1 . Gunslinging . | . . . . Exploded . | . . . . Melee . | . . . . Uniques/NPCs Destroyed . | . . . . Combat | -11 -10 -10 -7 -------- Run | Yrd Mat Sub Rec Hostile Shots Fired 182 | . 63 98 21 Missed 67 | . 20 45 2 Damage Taken 1204 | . 525 553 126 Core 254 | . 76 158 20 Absorbed by Shields . | . . . . Core Remaining (%) 100 | 100 . . . Volleys Fired 52 | . 20 29 3 Largest 2 | . 2 2 2 Hottest 40 | . 40 40 40 Shots Fired 104 | . 40 58 6 Gun 104 | . 40 58 6 Cannon . | . . . . Launcher . | . . . . Special . | . . . . Kinetic 104 | . 40 58 6 Thermal . | . . . . Explosive . | . . . . Electromagnetic . | . . . . Robot Hit Streak 7 | . 6 6 7 Robot Miss Streak 3 | . 3 2 . Penetration Max . | . . . . Secondary Targets 2 | . 1 1 . Max Gunslinging Chain 1 | . 1 1 . Shots Hit Robots 66 | . 24 36 6 Core Hits 23 | . 11 11 1 Critical Kills . | . . . . Critical Parts Destroyed . | . . . . Critical Strikes . | . . . . Melee Attacks . | . . . . Impact . | . . . . Slashing . | . . . . Piercing . | . . . . Sneak Attacks . | . . . . Combat Hostiles . | . . . . Follow-up Attacks . | . . . . Damage Inflicted 596 | . 262 291 43 Guns 596 | . 262 291 43 Cannons . | . . . . Explosions . | . . . . Melee . | . . . . Ramming . | . . . . Kinetic 596 | . 262 291 43 Thermal . | . . . . Explosive . | . . . . Electromagnetic . | . . . . Impact . | . . . . Slashing . | . . . . Piercing . | . . . . Highest Corruption . | . . . . Average Corruption . | . . . . Corruption Purged . | . . . . Corruption Blocked . | . . . . Overload Shots . | . . . . Overflow Damage 17 | . 17 . . Projectiles . | . . . . Explosions 17 | . 17 . . Melee . | . . . . Knockbacks . | . . . . Impact . | . . . . Kinetic . | . . . . Secondary . | . . . . Self-Inflicted Damage 101 | . 101 . . Shots 1 | . 1 . . Rammed . | . . . . Targets Rammed . | . . . . Kicked . | . . . . Crushed . | . . . . Highest Temperature 15 | . 9 . 15 Average Temperature 8 | . 7 . 9 Received Heat Transfer 420 | . 126 258 36 Siege Activations . | . . . . Robots Corrupted . | . . . . Combat Hostiles . | . . . . Parts Fried . | . . . . Impact Corruptions . | . . . . Robots Melted . | . . . . Combat Hostiles . | . . . . Parts Melted . | . . . . Heat Transferred . | . . . . Parts Sabotaged . | . . . . Parts Stolen . | . . . . Parts Stripped . | . . . . Power Chain Reactions . | . . . . Alert | -11 -10 -10 -7 ------- Run | Yrd Mat Sub Rec Peak Influence 462 | . 232 . 462 Initial 456 | . . . 456 Average 153 | . 88 . 458 Maximum Alert Level 2 | . 1 . 2 Low Security (%) 65 | 100 79 . . Level 1 15 | . 20 . . Level 2 18 | . . . 100 Level 3 . | . . . . Level 4 . | . . . . Level 5 . | . . . . High Security . | . . . . Max Security . | . . . . Squads Dispatched 1 | . 1 . . Investigation 1 | . 1 . . Extermination . | . . . . Reinforcement . | . . . . Assault . | . . . . Garrison . | . . . . Intercept . | . . . . Searches Triggered . | . . . . Construction Impeded . | . . . . Haulers Reinforced . | . . . . Active Scanning Responses . | . . . . Cargo Convoy Interrupts . | . . . . Stealth | -11 -10 -10 -7 --------- Run | Yrd Mat Sub Rec Distress Signals . | . . . . Communications Jammed . | . . . . Distress Signals . | . . . . Times Spotted 83 | . 14 68 1 Peak Tracking Total 7 | . 7 7 1 Tactical Retreats 6 | . 1 5 . Traps | -11 -10 -10 -7 ------- Run | Yrd Mat Sub Rec Traps Triggered 1 | . 1 . . Indirectly . | . . . . Trap Hack Attempts . | . . . . Triggered . | . . . . Disarmed . | . . . . Reprogrammed . | . . . . Reused . | . . . . Traps Extracted . | . . . . Installed . | . . . . Triggered 2 | . . 2 . Machines | -11 -10 -10 -7 ---------- Run | Yrd Mat Sub Rec Machines Disabled 1 | . 1 . . Max in Single Turn 1 | . 1 . . Machines Repaired . | . . . . Machines Dismantled . | . . . . Machines Sabotaged . | . . . . Overloaded Fab Kills . | . . . . Hacking | -11 -10 -10 -7 --------- Run | Yrd Mat Sub Rec Machines Accessed 2 | . . . 2 Terminals . | . . . . Fabricators . | . . . . Repair Stations . | . . . . Recycling Units 2 | . . . 2 Scanalyzers . | . . . . Garrison Access . | . . . . Total Hacks 4 | . . . 4 Successful 3 | . . . 3 Failed 1 | . . . 1 Catastrophic . | . . . . Database Lockouts . | . . . . Manual 4 | . 2 . 2 Terminals . | . . . . Fabricators . | . . . . Repair Stations . | . . . . Recycling Units 4 | . . . 4 Scanalyzers . | . . . . Garrison Access . | . . . . Terminal Hacks . | . . . . Fabricator Hacks . | . . . . Repair Station Hacks . | . . . . Recycling Unit Hacks 1 | . . . 1 Report Inventory 1 | . . . 1 Scanalyzer . | . . . . Garrison Access Hacks . | . . . . Unauthorized Hacks 2 | . . . 2 Terminals . | . . . . Fabricators . | . . . . Repair Stations . | . . . . Recycling Units 2 | . . . 2 Reject 1 | . . . 1 Mask 1 | . . . 1 Scanalyzers . | . . . . Garrison Access . | . . . . Data Cores Recovered . | . . . . Used . | . . . . Hacking Detections 3 | . 1 . 2 Full Trace Events . | . . . . Feedback Events . | . . . . Feedback Blocked . | . . . . Robot Schematics Acquired . | . . . . Robots Built . | . . . . Authchips . | . . . . Time . | . . . . Total Robot Build Rating . | . . . . Part Schematics Acquired . | . . . . Parts Built . | . . . . Authchips . | . . . . Time . | . . . . Total Part Build Rating . | . . . . Parts Repaired . | . . . . Time . | . . . . Parts Recycled . | . . . . Recycled Matter . | . . . . Retrieved Matter . | . . . . Retrieved Components . | . . . . Parts Scanalyzed . | . . . . Part Schematics Acquired . | . . . . Parts Damaged . | . . . . Bothacking | -11 -10 -10 -7 ------------ Run | Yrd Mat Sub Rec Used RIF Installer . | . . . . Robots Hacked . | . . . . Non-combat . | . . . . Combat . | . . . . Robot Hacks Applied . | . . . . Relay Couplers Released . | . . . . Fabnet Peak Effective % . | . . . . Robots Rewired . | . . . . Allies Hacked . | . . . . Hacks Repelled . | . . . . Allies | -11 -10 -10 -7 -------- Run | Yrd Mat Sub Rec Total Allies . | . . . . Largest Group . | . . . . Highest-Rated Group . | . . . . Highest-Rated Ally . | . . . . Total Orders . | . . . . Ally Attacks . | . . . . Total Damage . | . . . . Kills . | . . . . Allies Corrupted . | . . . . Allies Melted . | . . . . Intel | -11 -10 -10 -7 ------- Run | Yrd Mat Sub Rec Robot Analysis Total . | . . . . Derelict Logs Recovered . | . . . . Drone Launches . | . . . . Drone Recoveries . | . . . . Exploration | -11 -10 -10 -7 ------------- Run | Yrd Mat Sub Rec Turns Passed 1541 | 63 711 586 181 Spaces Moved 1010 | 43 433 409 125 Core 2 | 2 . . . Treads 201 | . 201 . . Legs 807 | 41 232 409 125 Wheels . | . . . . Hover . | . . . . Flight . | . . . . Fastest Speed 50 | 50 120 120 120 Average Speed 130 | 116 140 122 128 Slowest Speed 190 | 120 190 190 130 Overloaded Moves . | . . . . Propulsion Burnouts . | . . . . Robots Hopped . | . . . . Cave-ins Triggered . | . . . . Exploration Rate (%) 26 | 3 46 36 21 Regions Visited 3 Branch Regions 2 Pre-discovered Areas . | . . . . Known Exits Taken . | . . . . Unknown Exits Taken 3 | 1 1 1 . Scrap Searched 1 | . . 1 . Spaces Dug . | . . . . Terrain Destroyed 27 | . 27 . . Melee . | . . . . Projectile . | . . . . AOE 27 | . 27 . . Terrain Rammed . | . . . . Walls Destroyed . | . . . . Machines Disabled . | . . . . Actions | -11 -10 -10 -7 --------- Run | Yrd Mat Sub Rec Total 1140 | 53 493 449 145 Wait 21 | . 17 4 . Move 1007 | 42 432 408 125 Hop . | . . . . Pick Up 18 | 5 7 3 3 Fast Attach 7 | 5 1 1 . Attach 3 | 1 1 . 1 Detach . | . . . . Swap 19 | . 14 . 5 Drop 13 | . 1 4 8 Fire 52 | . 20 29 3 Melee . | . . . . Ram . | . . . . Kick . | . . . . Crush . | . . . . Escape Stasis . | . . . . Rewire . | . . . . Trap . | . . . . Miscellaneous . | . . . . Route ------- -11/Scrapyard -10/Materials (discovered 4 exits: [*Mat x2] / [*Min] / [*Sub]) -10/Subcaves -7/Recycling History --------- Turn | Location | Event 21 | -11/Scrapyard | Discovered new exit (range 16) 64 | -11/Scrapyard | Entered Materials 208 | -10/Materials | Discovered new exit (range 16) 301 | -10/Materials | Build established: Mutant 345 | -10/Materials | Discovered new exit (range 9) 405 | -10/Materials | Discovered new exit (range 5) 684 | -10/Materials | Discovered new exit (range 8) 775 | -10/Materials | Entered Subcaves 876 | -10/Subcaves | Ambushed by swarm of Subdwellers 882 | -10/Subcaves | Core integrity fell below 50% 961 | -10/Subcaves | A swath of the cavern ceiling suddenly collapsed 1034 | -10/Subcaves | Shifting Twisted Machinery released Sub. Laser 1042 | -10/Subcaves | Shifting Twisted Machinery released Barrage Gun 1254 | -10/Subcaves | Discovered new exit (range 14) 1320 | -10/Subcaves | Core integrity fell below 20% 1361 | -10/Subcaves | Entered Recycling 1367 | -7/Recycling | Found Scrap Engine 1542 | -7/Recycling | Destroyed by Y-54 Guardian with Gatling Laser Last Messages --------------- 01420_ R-06 Scavenger collects Carbon-fiber Leg. 01422_ Connecting with Recycling Unit... >>Recycling(Report) Matter reserves: 0 Inventory: Ion Engine (60%) Scrap Engine (100%) 01440_ Connecting with Recycling Unit... [Achievement: True Hacker] >>Trojan(Mask) Trojan loaded successfully. Testing... Masking routine running. >>Trojan(Reject) Trojan loaded successfully. Testing... Ejection routine running. 01517_ Acquired 50 matter. 01531_ Y-54 Guardian springs to life. 01535_ Lgt. Nuclear Core destroyed. Map ----- +----------------------------------------------------+ | ?????????????????????????????????????????????????? | | ?????????????????????????????????????????????????? | | ?????????????????????????????????????????????????? | | ?????????????????????????????????????????????????? | | ?????????????????????????????????????????????????? | | ?????????????????????????????????????????????????? | | ?????????????????????????????????????????????????? | | ?????????????????????????????????????????????????? | | ?????????????????????????????????????????????????? | | ?????????????????????????????????????????????????? | | ?????????????????????????????????????????????????? | | ?????????????????????????????????????????????????? | | ?????????????????????????????????????????????????? | | ???????????????????##+########+##? ????#####???### | | ???????????????????# ## ????#"""#??% %# | | ???????????????????# % = # ?????#"Y"###%%%# | | ???????????????????#= ! +?????? | | ???????????????????# % #??????# | | ???????????????????# = #??????# | | ???????????????????#[ ! !u #??????# | | ???????????????????# #??????# | | ???????????????????# #??????# | | ???????????????????# !! #??????# | | ???????????????????# [ #??????## ######## | | ???????????????????# #???????# #??????? | | ???????????????????# @ #???????# #??????? | | ???????????????????#######Y###+##########+##?????? | | ????????????????????????# + #?????? | | ???????????????########## # ##### ""#?????? | | ???????????????#[%] # #?#???# Y"#?????? | | ???????????????# # #?????# ""#?????? | | ???????????????# %+ #?????# #?????? | | ???????????????# !!# ###???# """ #?????? | | ???????????????#[ # [ #???# """ #?????? | | ???????????????#! # [[#???# """ #?????? | | ???????????????# # [[#???# #?????? | | ???????????????# = # ########+##+######???? | | ???????????????# # ? #???? | | ???????????????########## #???? | | ????????????????????????# #???? | | ????????????????????????#### #"Y"######" ###???? | | ???????????????????????????# =#"""#????#"T#?????? | | ???????????????????????????#########????####?????? | | ?????????????????????????????????????????????????? | | ?????????????????????????????????????????????????? | | ?????????????????????????????????????????????????? | | | | | | | | | +----------------------------------------------------+ Best States ------------- Heat Dissipation 25 Energy Generation 14 Energy Capacity 250 Matter Stores 300 Matter Capacity 300 Sight Range 16 Robot Scan Range 14 Terrain Scan Density 10 Evasion (%) 55 Recoil Reduction 2 Item Schematics ----------------- None Robot Schematics ------------------ None Fabricated ------------ Nothing Alien Tech Used ----------------- None Achievements -------------- True Hacker Challenges ------------ None Game ------ Seed HeartCoreSource Manual? 0 Play Time 00:33:19 Cumulative 11.4 hours Start 2024.04.03 @ 01:05:55 End 2024.04.03 @ 03:05:10 Sessions 3 Manual Loads 0 Difficulty Rogue Special Mode None Game No. 24 Rogue 24 Adventurer 0 Explorer 0 Win Type - Total 0 Types 0/0/0/0/0/0/0/0/0 Lore% 5 Gallery% 16 Achievement% 16 Wizard Run 0 Options --------- Layout 1 ASCII 0 Keyboard 0 Movement Mouse Keybinds 0 Fullscreen 1 Font 16/SmallcapsGlow Map View 50x40 Zoom Use 0% Tactical HUD 1 Map Filters NONE Filters NONE Steam SD RUN: 8eba2f82-d177-4d68-8b32-f386dd6a45f4